bitfinex-derivatives/quotes_SOLF0:USTF0_20260204
["timestamp","ask_amount","ask_price","bid_price","bid_amount"]
[1770219651796,32.77,92.419,92.312,21.62145094]
[1770219651991,9.7541,92.403,92.312,21.62145094]
[1770219652197,32.77,92.419,92.312,21.62145094]
[1770219652603,30.08700789,92.42,92.314,21.62586821]
[1770219652999,32.77,92.419,92.314,21.62586821]
[1770219653490,32.77,92.417,92.257,21.62586821]
[1770219653692,151.6616,92.445,92.286,21.63358321]
[1770219653693,32.77,92.389,92.286,21.63358321]
[1770219653893,30.08700789,92.39,92.286,21.63358321]
[1770219654096,219.58,92.408,92.286,21.63358321]
[1770219654297,219.54,92.419,92.311,21.63358321]
[1770219654700,9.7556,92.388,92.311,21.63358321]
[1770219655097,30.08700789,92.39,92.311,21.63358321]
[1770219655607,219.54,92.419,92.311,21.63358321]
[1770219655902,32.77,92.418,92.311,21.63358321]
[1770219656805,151.6313,92.464,92.311,21.63358321]
[1770219657103,151.5923,92.487,92.344,21.64038249]
[1770219657104,9.7518,92.425,92.344,21.64038249]
[1770219657310,30.08700789,92.44,92.344,21.64038249]
[1770219657909,32.77,92.439,92.344,21.64038249]
[1770219658113,30.08700789,92.44,92.344,21.64038249]
[1770219658316,30.08700789,92.47,92.344,21.64038249]
[1770219659111,30.08700789,92.52,92.354,21.67577894]
[1770219659313,30.08700789,92.53,92.354,21.67577894]
[1770219659509,30.08700789,92.53,92.385,21.67577894]
[1770219659709,30.08700789,92.52,92.385,21.67577894]
[1770219660114,32.77,92.519,92.387,21.68223821]
[1770219660309,151.5017,92.543,92.387,21.68223821]
[1770219660514,151.4546,92.571,92.389,21.68223821]
[1770219660515,30.08700789,92.54,92.389,21.68223821]
[1770219660709,19.4706,92.581,92.36,157.8002]
[1770219660710,30.08700789,92.57,92.401,21.68223821]
[1770219661010,463.32231247,92.672,92.42,21.68223821]
[1770219661011,30.08700789,92.54,92.42,21.68223821]
[1770219661212,30.08700789,92.55,92.42,21.68223821]
[1770219661413,30.08700789,92.58,92.434,151.678]
[1770219661716,151.3223,92.652,92.4,30.08700789]
[1770219661717,30.08700789,92.65,92.489,21.68223821]
[1770219661915,1.88095907,92.609,92.489,21.68223821]
[1770219662112,1.88095907,92.609,92.485,190.76]
[1770219662113,1.88095907,92.609,92.506,21.68220878]
[1770219662315,220.42,92.649,92.506,21.68220878]
[1770219662510,30.08700789,92.71,92.577,9.7357]
[1770219662712,30.08700789,92.71,92.562,190.92]
[1770219663018,1.878933,92.699,92.562,190.92]
[1770219663214,9.7228,92.7,92.579,9.7354]
[1770219663421,151.1726,92.744,92.562,190.92]
[1770219663422,58.93920006,92.739,92.592,151.4196]
[1770219663718,58.93920006,92.728,92.56,30.08700789]
[1770219663912,59.1722384,92.712,92.561,190.94]
[1770219664119,9.7295,92.636,92.523,422.80191707]
[1770219664317,59.1722384,92.64,92.523,422.80191707]
[1770219664511,59.1722384,92.64,92.53,6.0]
[1770219664711,59.1722384,92.669,92.53,6.0]
[1770219665116,151.1657,92.748,92.53,6.0]
[1770219665117,59.08464412,92.698,92.54,30.08700789]
[1770219665319,59.08464412,92.698,92.53,6.0]
[1770219665320,59.08464412,92.782,92.598,151.4091]
[1770219665512,59.08464412,92.782,92.63,30.08700789]
[1770219665818,151.0277,92.833,92.631,191.74]
[1770219665819,60.96217312,92.769,92.631,191.74]
[1770219666311,59.08464412,92.769,92.593,151.4183]
[1770219666615,59.08464412,92.769,92.482,454.7993]
[1770219666616,59.25425597,92.699,92.547,151.4929]
[1770219666820,59.25425597,92.699,92.589,9.7343]
[1770219667012,59.25425597,92.699,92.56,30.08700789]
[1770219667013,59.1931121,92.73,92.58,151.4388]
[1770219667211,59.1931121,92.73,92.56,30.08700789]
[1770219667415,59.1931121,92.689,92.504,151.5639]
[1770219667714,59.1931121,92.689,92.537,151.5101]
[1770219667914,59.1931121,92.689,92.58,9.7353]
[1770219668119,59.1931121,92.689,92.55,151.4876]
[1770219668419,151.1305,92.77,92.53,222.10700789]
[1770219668420,88.91704463,92.75,92.586,151.4287]
[1770219668718,58.83003674,92.749,92.602,151.4027]
[1770219668920,58.83003674,92.749,92.6,36.08700789]
[1770219669217,58.81819859,92.769,92.63,30.08700789]
[1770219669413,58.81819859,92.769,92.6,36.08700789]
[1770219669615,58.81819859,92.769,92.608,151.3932]
[1770219669814,58.81819859,92.769,92.6,36.08700789]
[1770219670018,58.7440627,92.767,92.626,9.7305]
[1770219670220,58.7440627,92.739,92.57,30.08700789]
[1770219670619,58.7440627,92.739,92.599,151.4073]
[1770219670811,58.7440627,92.739,92.569,151.4566]
[1770219670812,60.60931476,92.77,92.631,151.356]
[1770219671017,58.73161354,92.8,92.684,151.2691]
[1770219671220,58.73161354,92.831,92.691,151.2573]
[1770219671423,58.73161354,92.831,92.69,30.08700789]
[1770219671618,58.73161354,92.831,92.699,9.7228]
[1770219671814,1.87624342,92.839,92.66,30.08700789]
[1770219671815,58.73161354,92.829,92.677,193.76]
[1770219672019,58.3060068,92.826,92.694,9.7233]
[1770219672323,58.3060068,92.826,92.677,193.76]
[1770219672324,58.3060068,92.826,92.69,30.08700789]
[1770219672524,58.3060068,92.818,92.66,30.08700789]
[1770219672722,58.3060068,92.809,92.667,151.2961]
[1770219672920,58.3060068,92.809,92.661,193.68]
[1770219673119,60.1825841,92.809,92.694,9.7233]
[1770219673320,58.3060068,92.809,92.694,9.7233]
[1770219673621,58.3060068,92.809,92.727,9.7199]
[1770219673817,58.3060068,92.809,92.675,151.2833]
[1770219674020,58.3060068,92.809,92.661,193.68]
[1770219674220,58.24883519,92.84,92.711,151.2258]
[1770219674621,58.24883519,92.84,92.736,9.719]
[1770219674817,58.24883519,92.839,92.66,30.08700789]
[1770219675022,58.2312487,92.809,92.661,193.6]
[1770219675426,58.2312487,92.79,92.675,9.7254]
[1770219675726,58.2312487,92.79,92.661,193.6]
[1770219675926,58.2312487,92.79,92.665,151.2998]
[1770219676224,58.2312487,92.79,92.666,193.86]
[1770219677120,58.20330801,92.852,92.717,151.2149]
[1770219677326,58.20330801,92.852,92.732,151.1901]
[1770219677525,58.20330801,92.852,92.76,9.7164]
[1770219677722,58.20330801,92.852,92.718,193.96]
[1770219677917,58.20330801,92.852,92.719,194.0]
[1770219678118,58.20330801,92.852,92.7,30.08700789]
[1770219678322,31.9625182,92.87,92.673,151.2878]
[1770219678323,58.12226161,92.833,92.701,194.04]
[1770219678624,58.12226161,92.833,92.755,9.7169]
[1770219678920,58.12226161,92.862,92.743,194.32]
[1770219679421,1.87551031,92.87,92.703,151.2375]
[1770219679422,90.87480246,92.858,92.737,194.28]
[1770219679625,58.10480246,92.857,92.755,9.7169]
[1770219679826,58.10480246,92.857,92.737,194.28]
[1770219680125,58.10480246,92.857,92.769,9.7155]
[1770219680422,58.10480246,92.857,92.737,194.28]
[1770219680623,1.87512124,92.88,92.751,151.1599]
[1770219680921,1.87512124,92.88,92.737,194.28]
[1770219680922,59.00891779,92.925,92.786,151.1031]
[1770219681126,59.00891779,92.925,92.77,151.1287]
[1770219681127,59.00891779,92.925,92.79,30.08700789]
[1770219681424,59.00891779,92.899,92.731,151.1927]
[1770219681727,59.00891779,92.89,92.764,151.1394]
[1770219681926,59.00891779,92.89,92.766,151.1361]
[1770219682130,59.00891779,92.89,92.806,9.7117]
[1770219682322,59.00891779,92.89,92.731,151.1928]
[1770219682323,59.00891779,92.89,92.74,30.08700789]
[1770219682623,59.00515499,92.869,92.73,151.1939]
[1770219682817,59.00515499,92.869,92.731,194.62]
[1770219683018,59.00515499,92.869,92.726,151.2003]
[1770219683328,58.98863245,92.849,92.713,151.2219]
[1770219683518,58.98863245,92.849,92.728,151.1974]
[1770219683718,58.89897828,92.879,92.739,151.1799]
[1770219683924,58.89897828,92.879,92.734,151.1873]
[1770219684123,58.89897828,92.879,92.753,151.1562]
[1770219684325,58.89897828,92.879,92.768,151.1314]
[1770219684625,58.88208913,92.871,92.71,30.08700789]
[1770219684830,58.88208913,92.849,92.681,19.4494]
[1770219685026,58.88208913,92.849,92.692,151.2558]
[1770219685228,30.08700789,92.85,92.714,151.2208]
[1770219685229,58.86539396,92.847,92.714,151.2208]
[1770219685726,58.86539396,92.847,92.747,9.7178]
[1770219685927,58.86539396,92.847,92.741,195.3]
[1770219686520,58.86539396,92.847,92.736,195.32]
[1770219687024,58.86539396,92.847,92.683,151.2708]
[1770219687325,58.80773105,92.829,92.711,151.2255]
[1770219687524,58.80773105,92.829,92.716,151.2174]
[1770219687725,58.80773105,92.829,92.721,151.2093]
[1770219687925,58.64047224,92.859,92.738,151.1809]
[1770219688127,58.64047224,92.918,92.792,151.0932]
[1770219688328,58.64047224,92.901,92.793,195.8]
[1770219688725,58.64047224,92.901,92.838,9.7083]
[1770219689029,58.63023618,92.93,92.813,151.0588]
[1770219689225,58.63023618,92.93,92.8,30.08700789]
[1770219689226,58.63023618,92.988,92.918,9.6999]
[1770219689433,58.63023618,92.988,92.874,195.8]
[1770219690026,58.58932592,92.971,92.874,195.8]
[1770219690427,58.58932592,92.971,92.891,9.7028]
[1770219690729,58.58932592,92.971,92.874,195.8]
[1770219691124,58.58932592,92.971,92.82,30.08700789]
[1770219691125,58.57916517,92.969,92.816,195.84]
[1770219691324,58.57916517,92.939,92.816,195.84]
[1770219691926,58.55530671,92.921,92.831,9.709]
[1770219692126,58.55530671,92.921,92.816,195.84]
[1770219692730,219.42,92.962,92.793,151.091]
[1770219692731,58.55530671,92.909,92.793,151.091]
[1770219692930,58.55530671,92.909,92.787,196.06]
[1770219693131,58.54530926,92.906,92.81,9.7112]
[1770219693332,58.54530926,92.906,92.795,151.0877]
[1770219693533,58.54530926,92.906,92.807,151.0693]
[1770219693732,19.80289859,92.95,92.789,151.0984]
[1770219693733,58.54530926,92.944,92.805,151.0723]
[1770219694027,58.35667637,92.938,92.798,151.0829]
[1770219694232,219.26,92.982,92.775,151.1201]
[1770219694233,58.35667637,92.919,92.788,196.38]
[1770219694633,58.35667637,92.889,92.81,9.7112]
[1770219694932,58.35667637,92.889,92.746,196.42]
[1770219695131,19.80289859,92.86,92.746,196.42]
[1770219695334,58.3460462,92.859,92.746,196.42]
[1770219695637,58.3460462,92.859,92.78,9.7143]
[1770219695837,58.3460462,92.859,92.722,19.441]
[1770219696039,58.3460462,92.859,92.686,19.4483]
[1770219696340,58.3460462,92.859,92.703,151.2389]
[1770219696641,58.3460462,92.859,92.717,151.2149]
[1770219696933,19.80289859,92.86,92.706,151.2332]
[1770219696934,58.29086665,92.857,92.768,9.7156]
[1770219697238,58.29086665,92.857,92.725,151.2023]
[1770219697534,58.29086665,92.799,92.63,19.80289859]
[1770219697732,58.29086665,92.769,92.617,151.3784]
[1770219697934,58.29086665,92.769,92.681,9.7247]
[1770219698234,58.29086665,92.769,92.624,151.3673]
[1770219698433,58.29086665,92.769,92.643,151.3368]
[1770219698633,58.29086665,92.769,92.648,151.3283]
[1770219698833,58.29086665,92.769,92.625,151.366]
[1770219699135,58.29086665,92.769,92.628,151.361]
[1770219699330,58.29086665,92.769,92.629,151.3587]
[1770219699527,58.29086665,92.769,92.625,151.366]
[1770219699528,58.29086665,92.769,92.649,151.327]
[1770219699734,58.29447147,92.765,92.671,9.7257]
[1770219700439,58.24517058,92.758,92.658,9.7271]
[1770219700638,58.24517058,92.758,92.652,197.3]
[1770219700937,58.23503576,92.755,92.665,9.7264]
[1770219701438,58.23503576,92.755,92.691,9.7237]
[1770219701635,58.23503576,92.786,92.678,197.34]
[1770219702237,58.23503576,92.786,92.714,9.7212]
[1770219702431,58.22438391,92.816,92.688,151.2622]
[1770219702641,58.22438391,92.816,92.715,151.2191]
[1770219702835,58.22438391,92.859,92.716,197.48]
[1770219703346,58.21447789,92.855,92.717,151.2151]
[1770219703641,58.21447789,92.855,92.756,151.1519]
[1770219703837,58.21447789,92.855,92.752,151.1584]
[1770219704033,58.21447789,92.855,92.735,151.1866]
[1770219704238,58.21447789,92.855,92.796,9.7127]
[1770219704543,58.2318901,92.889,92.773,197.8]
[1770219704745,58.2318901,92.889,92.823,9.7098]
[1770219704937,58.2318901,92.889,92.774,197.86]
[1770219705139,218.68,92.97,92.774,197.86]
[1770219705140,58.22232198,92.918,92.794,151.0892]
[1770219705437,58.22232198,92.918,92.824,9.7097]
[1770219705638,58.22232198,92.917,92.824,9.7097]
[1770219705843,58.22232198,92.917,92.804,197.86]
[1770219706240,58.23276221,92.909,92.804,197.86]
[1770219706442,58.23276221,92.903,92.804,197.86]
[1770219706638,58.23276221,92.903,92.73,6.0]
[1770219706837,58.22349176,92.759,92.631,32.77]
[1770219707039,58.22349176,92.759,92.579,151.4413]
[1770219707240,53.36084176,92.719,92.58,197.9]
[1770219707440,53.36084176,92.717,92.58,197.9]
[1770219707747,212.82,92.775,92.56,19.80289859]
[1770219707748,53.36084176,92.755,92.601,151.4051]
[1770219707945,53.36084176,92.755,92.628,151.3605]
[1770219708241,53.36084176,92.755,92.659,9.727]
[1770219708443,53.36084176,92.755,92.654,198.78]
[1770219708647,53.36084176,92.755,92.669,9.726]
[1770219709143,53.36084176,92.755,92.655,198.82]
[1770219709346,53.14225612,92.753,92.623,198.86]
[1770219709655,85.53225612,92.749,92.623,198.86]
[1770219709843,19.80289859,92.73,92.628,9.7303]
[1770219710039,52.90390951,92.729,92.604,198.86]
[1770219710445,62.62370951,92.729,92.616,9.7316]
[1770219710646,52.90390951,92.699,92.576,198.82]
[1770219711249,52.90390951,92.699,92.577,199.0]
[1770219711657,52.90390951,92.699,92.596,9.7336]
[1770219711950,52.96827881,92.692,92.577,199.0]
[1770219712450,52.96827881,92.669,92.47,19.80289859]
[1770219712642,52.96827881,92.669,92.431,151.6828]
[1770219712643,52.96827881,92.609,92.469,151.6209]
[1770219712848,52.96827881,92.609,92.47,199.08]
[1770219713453,52.96827881,92.609,92.499,9.7439]
[1770219713750,52.96827881,92.609,92.485,151.5944]
[1770219713954,52.96827881,92.609,92.529,9.7407]
[1770219714350,52.96827881,92.609,92.513,9.7424]
[1770219714753,52.96827881,92.609,92.479,151.605]
[1770219715054,52.96827881,92.609,92.53,9.7406]
[1770219715258,151.2647,92.688,92.481,151.6014]
[1770219715259,52.81916937,92.64,92.526,199.04]
[1770219715555,151.1844,92.737,92.526,199.04]
[1770219715556,52.81916937,92.671,92.526,199.04]
[1770219716355,52.49857231,92.669,92.56,9.7374]
[1770219716758,52.49857231,92.659,92.542,9.7393]
[1770219717457,52.49857231,92.659,92.559,9.7375]
[1770219717656,52.49857231,92.659,92.526,199.02]
[1770219717853,52.48673607,92.654,92.526,199.02]
[1770219718054,52.48673607,92.639,92.526,199.02]
[1770219718751,52.48673607,92.639,92.541,9.7394]
[1770219718947,52.48673607,92.639,92.513,199.02]
[1770219719457,52.48673607,92.639,92.529,9.7407]
[1770219720145,19.80289859,92.64,92.529,9.7407]
[1770219720146,52.42875833,92.637,92.529,9.7407]
[1770219720349,52.42875833,92.637,92.544,9.7391]
[1770219720757,52.42875833,92.637,92.508,199.02]
[1770219720951,52.42875833,92.637,92.529,9.7407]
[1770219721457,52.39997349,92.634,92.52,151.5378]
[1770219721658,52.39997349,92.668,92.522,151.5335]
[1770219721864,62.12617349,92.668,92.521,198.86]
[1770219722060,52.39997349,92.668,92.525,151.5292]
[1770219722257,52.39997349,92.668,92.557,151.4775]
[1770219722457,52.39997349,92.668,92.544,151.4978]
[1770219722662,52.39997349,92.668,92.54,19.80289859]
[1770219722863,52.39997349,92.668,92.53,151.5217]
[1770219723166,52.39997349,92.668,92.567,9.7367]
[1770219723360,52.39997349,92.668,92.543,151.4992]
[1770219723560,52.39997349,92.668,92.608,9.7324]
[1770219723766,52.39997349,92.668,92.572,199.16]
[1770219724157,52.39997349,92.668,92.525,151.5283]
[1770219724158,52.39997349,92.668,92.58,9.7353]
[1770219724763,52.2778284,92.666,92.505,151.5613]
[1770219724958,52.2778284,92.666,92.496,151.577]
[1770219724959,52.25003687,92.658,92.507,151.5587]
[1770219725163,32.39,92.659,92.498,151.5738]
[1770219725164,61.97813687,92.649,92.553,9.7382]
[1770219725363,52.25003687,92.619,92.486,151.5931]
[1770219725563,52.25003687,92.619,92.501,199.66]
[1770219726669,52.25003687,92.619,92.49,6.0]
[1770219726865,52.25003687,92.619,92.496,151.5769]
[1770219727067,52.25003687,92.619,92.491,199.96]
[1770219727068,52.25003687,92.619,92.53,9.7406]
[1770219727269,52.25003687,92.619,92.491,199.96]
[1770219727674,52.25003687,92.619,92.501,151.5686]
[1770219727863,52.25003687,92.619,92.492,151.5834]
[1770219728066,52.25003687,92.619,92.544,9.7391]
[1770219728375,52.4028516,92.649,92.518,151.5412]
[1770219728566,52.4028516,92.649,92.519,200.42]
[1770219728869,52.4028516,92.649,92.56,9.7375]
[1770219729064,52.4028516,92.649,92.519,200.42]
[1770219729264,52.4028516,92.649,92.547,9.7387]
[1770219729265,52.37807522,92.637,92.547,9.7387]
[1770219729469,52.37807522,92.637,92.519,200.42]
[1770219729974,52.35419559,92.634,92.546,9.7389]
[1770219730370,52.35419559,92.618,92.519,200.42]
[1770219730569,52.35419559,92.618,92.49,200.6]
[1770219730972,52.35419559,92.618,92.499,151.5711]
[1770219731272,52.35419559,92.618,92.495,151.5776]
[1770219731476,52.35419559,92.618,92.553,9.7382]
[1770219731673,52.35419559,92.618,92.48,19.80289859]
[1770219731874,52.35419559,92.618,92.481,200.82]
[1770219732271,52.31325125,92.615,92.524,9.7412]
[1770219732470,52.31325125,92.615,92.495,151.5785]
[1770219732670,52.31325125,92.615,92.503,151.5652]
[1770219732871,52.31325125,92.615,92.463,151.6313]
[1770219733178,52.31325125,92.615,92.496,151.577]
[1770219733472,151.2139,92.719,92.51,6.0]
[1770219733473,52.28964816,92.649,92.51,6.0]
[1770219733673,62.01784816,92.649,92.51,6.0]
[1770219733875,62.01784816,92.649,92.511,151.5527]
[1770219734269,62.00032859,92.634,92.543,9.7392]
[1770219734570,32.39,92.633,92.471,19.4936]
[1770219734774,52.27052859,92.628,92.487,201.0]
[1770219734977,32.39,92.629,92.487,201.0]
[1770219734978,52.24749288,92.608,92.487,201.0]
[1770219736074,52.54376125,92.593,92.487,201.0]
[1770219736377,216.66,92.64,92.42,151.7012]
[1770219736378,52.54376125,92.579,92.42,171.50409859]
[1770219736572,52.54376125,92.568,92.431,151.6831]
[1770219736769,52.54376125,92.568,92.44,151.6676]
[1770219736974,52.54376125,92.568,92.438,19.5005]
[1770219737174,52.54376125,92.568,92.452,201.56]
[1770219737377,52.52331764,92.566,92.485,9.7453]
[1770219737572,52.52331764,92.566,92.42,19.80289859]
[1770219737973,52.52158354,92.559,92.409,19.5066]
[1770219738174,52.52158354,92.533,92.409,19.5066]
[1770219738475,52.52158354,92.589,92.435,151.6773]
[1770219738779,52.52158354,92.589,92.429,151.6871]
[1770219738780,52.52158354,92.589,92.44,19.80289859]
[1770219738972,52.52158354,92.589,92.459,19.4962]
[1770219739377,52.52158354,92.589,92.454,151.6449]
[1770219739378,52.52158354,92.589,92.516,9.742]
[1770219739576,52.50172227,92.617,92.512,202.14]
[1770219739774,52.50172227,92.617,92.513,202.1]
[1770219739975,52.50172227,92.617,92.531,9.7405]
[1770219740182,52.50172227,92.617,92.513,202.1]
[1770219741081,52.53413126,92.659,92.513,202.1]
[1770219741282,52.53413126,92.659,92.534,151.5139]
[1770219741480,52.53413126,92.659,92.53,19.80289859]
[1770219741675,52.53413126,92.659,92.535,202.4]
[1770219742681,52.53413126,92.659,92.59,9.7343]
[1770219743073,52.86381375,92.718,92.591,202.46]
[1770219743272,52.86381375,92.718,92.56,19.80289859]
[1770219743273,52.86381375,92.702,92.592,202.46]
[1770219744178,52.86381375,92.702,92.59,19.80289859]
[1770219744481,52.86381375,92.702,92.629,9.7301]
[1770219745677,52.86381375,92.702,92.591,202.46]
[1770219746283,52.86381375,92.702,92.628,9.7302]
[1770219746486,52.86381375,92.702,92.591,202.46]
[1770219746784,52.86381375,92.702,92.635,9.7295]
[1770219747382,52.86381375,92.702,92.591,202.46]
[1770219747577,52.86381375,92.702,92.623,9.7308]
[1770219747775,52.86381375,92.702,92.591,202.46]
[1770219748176,53.07686436,92.749,92.63,19.80289859]
[1770219749178,53.07686436,92.749,92.661,9.7268]
[1770219749482,53.07686436,92.749,92.646,202.48]
[1770219749686,53.07686436,92.749,92.66,9.7269]
[1770219749981,53.07686436,92.749,92.644,202.42]
[1770219750282,52.83543164,92.734,92.61,202.36]
[1770219750782,52.83543164,92.734,92.635,9.7295]
[1770219750986,52.83543164,92.734,92.61,202.36]
[1770219751380,52.83543164,92.734,92.65,9.7279]
[1770219751579,52.83543164,92.734,92.61,202.36]
[1770219751884,52.83543164,92.734,92.663,9.7266]
[1770219752187,52.83543164,92.734,92.63,19.80289859]
[1770219752384,52.83543164,92.734,92.62,29.80198701]
[1770219752784,52.83543164,92.734,92.59,29.80198701]
[1770219753189,52.83320643,92.717,92.588,202.6]
[1770219753889,52.79783395,92.709,92.612,9.732]
[1770219754085,52.79783395,92.698,92.54,29.80198701]
[1770219754284,151.202,92.726,92.5,151.5702]
[1770219754285,52.79783395,92.669,92.51,29.80198701]
[1770219754591,52.79783395,92.668,92.544,151.4983]
[1770219754886,9.7265,92.665,92.569,9.7365]
[1770219755086,52.78424964,92.664,92.51,29.80198701]
[1770219755285,52.78424964,92.664,92.504,19.4867]
[1770219755486,29.80198701,92.68,92.515,151.5449]
[1770219755487,52.78424964,92.652,92.515,151.5449]
[1770219755688,52.78424964,92.652,92.516,203.42]
[1770219755885,52.78424964,92.652,92.524,151.5304]
[1770219756192,52.78424964,92.652,92.52,29.80198701]
[1770219756690,52.78424964,92.652,92.49,35.80198701]
[1770219756886,53.26253352,92.647,92.491,203.72]
[1770219757087,32.39,92.644,92.491,203.72]
[1770219757386,29.80198701,92.65,92.491,203.72]
[1770219757387,53.26253352,92.624,92.491,203.72]
[1770219757581,53.26253352,92.624,92.499,151.5714]
[1770219757789,53.26253352,92.624,92.5,204.22]
[1770219758589,8.23356064,92.688,92.5,204.22]
[1770219758590,53.20906302,92.66,92.52,29.80198701]
[1770219758795,53.20906302,92.66,92.531,151.5187]
[1770219758994,53.20906302,92.66,92.535,151.5128]
[1770219759197,53.20906302,92.66,92.55,29.80198701]
[1770219759403,53.20906302,92.66,92.551,204.48]
[1770219759594,53.20906302,92.66,92.594,9.7338]
[1770219760894,53.13269301,92.686,92.575,204.52]
[1770219761494,53.13269301,92.686,92.614,9.7317]
[1770219761900,53.13269301,92.686,92.59,204.54]
[1770219763591,53.13269301,92.686,92.55,29.80198701]
[1770219763798,53.13269301,92.686,92.551,204.66]
[1770219763997,32.39,92.683,92.552,204.66]
[1770219764196,53.15961995,92.668,92.552,204.66]
[1770219764394,53.15961995,92.668,92.533,151.5167]
[1770219764597,53.15961995,92.695,92.576,151.4453]
[1770219764901,53.15961995,92.695,92.575,19.4718]
[1770219765297,53.15961995,92.695,92.576,204.84]
[1770219765500,53.14947682,92.739,92.598,151.4103]
[1770219765698,53.14947682,92.739,92.59,29.80198701]
[1770219765699,53.14947682,92.739,92.599,151.4082]
[1770219765899,53.14947682,92.739,92.658,9.7271]
[1770219766100,53.12996183,92.738,92.595,19.4675]
[1770219766301,53.12996183,92.735,92.597,151.4114]
[1770219766692,53.12996183,92.735,92.596,204.92]
[1770219766900,53.12996183,92.735,92.661,9.7268]
[1770219767097,53.12996183,92.735,92.599,19.4666]
[1770219767296,53.12996183,92.735,92.596,204.92]
[1770219767297,53.12996183,92.735,92.603,151.4015]
[1770219767498,53.12996183,92.735,92.656,9.7273]
[1770219767693,53.12996183,92.735,92.616,151.3795]
[1770219767898,53.12996183,92.735,92.622,151.371]
[1770219768095,53.12996183,92.735,92.62,29.80198701]
[1770219768295,53.12996183,92.735,92.59,29.80198701]
[1770219768500,53.12996183,92.735,92.591,205.18]
[1770219768695,53.12996183,92.735,92.603,151.4021]
[1770219768900,53.12996183,92.735,92.612,151.3861]
[1770219769100,53.12996183,92.735,92.604,205.16]
[1770219769297,53.12996183,92.735,92.658,9.7271]
[1770219769702,53.12996183,92.735,92.613,205.26]
[1770219769903,53.12863951,92.731,92.633,9.7297]
[1770219770299,53.13140864,92.717,92.631,9.73]
[1770219770497,53.13140864,92.717,92.613,205.26]
[1770219770898,53.13140864,92.717,92.653,9.7276]
[1770219771099,53.13140864,92.717,92.613,205.26]
[1770219771294,53.12205732,92.705,92.59,29.80198701]
[1770219771499,53.12205732,92.676,92.5,29.80198701]
[1770219771803,53.09051944,92.637,92.5,29.80198701]
[1770219771993,53.09051944,92.637,92.501,205.44]
[1770219772505,53.09051944,92.615,92.501,205.44]
[1770219772906,53.08130298,92.613,92.524,9.7412]
[1770219773407,53.08130298,92.597,92.501,9.7436]
[1770219773700,53.08130298,92.588,92.475,151.6107]
[1770219774007,53.08130298,92.588,92.486,151.593]
[1770219774201,53.08130298,92.588,92.481,151.6005]
[1770219774402,53.08130298,92.588,92.483,151.598]
[1770219774595,52.65628438,92.629,92.493,151.5818]
[1770219774800,52.65628438,92.629,92.506,151.5603]
[1770219775006,52.65628438,92.629,92.527,151.525]
[1770219775208,52.64600849,92.679,92.53,29.80198701]
[1770219775514,52.64600849,92.679,92.561,151.4704]
[1770219775702,52.64600849,92.679,92.56,29.80198701]
[1770219775900,52.64600849,92.679,92.561,206.72]
[1770219776206,52.64600849,92.679,92.616,9.7316]
[1770219776600,52.64600849,92.679,92.561,206.72]
[1770219776810,52.64600849,92.679,92.59,9.7343]
[1770219777203,62.37100849,92.679,92.585,9.7348]
[1770219777401,62.37100849,92.679,92.53,29.80198701]
[1770219777402,52.64600849,92.679,92.53,29.80198701]
[1770219777607,52.64600849,92.679,92.531,206.86]
[1770219777608,52.62176486,92.672,92.531,206.86]
[1770219777905,52.62176486,92.667,92.568,9.7366]
[1770219778303,52.62176486,92.667,92.579,9.7355]
[1770219779102,52.62176486,92.667,92.552,206.86]
[1770219779103,52.64594601,92.665,92.568,9.7366]
[1770219779605,52.64594601,92.663,92.568,9.7366]
[1770219779802,52.64594601,92.663,92.556,9.7379]
[1770219780198,52.46178793,92.649,92.51,29.80198701]
[1770219780502,52.46178793,92.648,92.519,151.5383]
[1770219780798,52.46178793,92.648,92.529,151.5228]
[1770219780999,52.46178793,92.648,92.51,29.80198701]
[1770219781205,52.45192988,92.623,92.489,19.4898]
[1770219781396,52.45192988,92.623,92.515,9.7421]
[1770219781597,52.45192988,92.623,92.49,207.18]
[1770219781797,52.45192988,92.623,92.491,207.14]
[1770219782200,52.40341317,92.61,92.491,207.14]
[1770219782406,52.40341317,92.608,92.48,418.81201069]